bitfinex-derivatives/quotes_ETHF0:USTF0_20260303
["timestamp","ask_amount","ask_price","bid_price","bid_amount"]
[1772575615848,1.61049477,1979.1,1978.7,0.79929014]
[1772575616045,0.79548979,1979.0,1978.6,0.7994116]
[1772575616241,1.61049477,1979.1,1978.7,0.5467316]
[1772575616450,1.65752519,1979.0,1978.3,0.01382179]
[1772575616646,0.84631442,1979.0,1978.4,0.01382179]
[1772575616949,1.65061429,1978.9,1978.4,0.01969657]
[1772575617148,0.83940352,1978.8,1978.3,0.25273]
[1772575617344,0.81121077,1978.8,1978.4,0.01582129]
[1772575617549,0.84328117,1979.1,1978.6,0.01565441]
[1772575617745,0.83948696,1978.9,1978.1,6.23510974]
[1772575617946,0.83948696,1978.9,1978.0,0.27038662]
[1772575618141,0.83948696,1978.7,1978.1,0.01762662]
[1772575618344,0.83948696,1978.7,1978.0,0.2591497]
[1772575618542,0.83717761,1978.5,1978.0,0.28139502]
[1772575619051,1.64838838,1978.4,1978.0,0.2591497]
[1772575619349,0.83717761,1978.4,1978.0,0.2591497]
[1772575619750,0.83725583,1978.3,1978.0,0.2591497]
[1772575619952,1.62242154,1978.4,1978.0,1.05294865]
[1772575620150,1.62242154,1978.4,1978.1,0.79379895]
[1772575620551,2.41791133,1978.4,1978.0,1.05294865]
[1772575621145,1.62242154,1978.4,1978.1,0.79379895]
[1772575621551,0.79548979,1978.6,1978.1,0.79379895]
[1772575621752,0.79548979,1978.5,1978.1,0.79379895]
[1772575621947,2.41791133,1978.6,1978.1,0.79379895]
[1772575622344,0.79548979,1978.5,1978.1,0.79379895]
[1772575623755,2.41791133,1978.6,1978.1,0.79379895]
[1772575624551,0.79548979,1979.0,1978.3,0.79379895]
[1772575624751,0.00379421,1979.1,1978.2,0.25274]
[1772575624752,0.799284,1979.1,1978.5,0.79379895]
[1772575626262,0.799284,1979.1,1978.6,0.25269]
[1772575626452,0.799284,1979.1,1978.7,0.79379895]
[1772575626652,0.79548979,1979.3,1978.7,0.79379895]
[1772575627656,0.80190545,1979.3,1978.7,0.79379895]
[1772575628358,0.80190545,1979.3,1978.6,0.25269]
[1772575628559,0.80190545,1979.3,1978.6,1.04648895]
[1772575630257,0.00641566,1979.3,1978.9,0.79379895]
[1772575630456,0.79548979,1979.9,1978.9,0.79379895]
[1772575631161,0.79548979,1979.9,1979.0,1.04643895]
[1772575631360,0.79922004,1979.9,1979.0,1.04643895]
[1772575631657,0.79922004,1979.9,1979.1,0.79379895]
[1772575633959,0.79922004,1979.9,1978.6,7.26594428]
[1772575634263,0.79922004,1979.9,1978.7,0.79379895]
[1772575634464,0.79548979,1979.7,1978.7,0.79379895]
[1772575634960,0.79548979,1979.7,1979.1,0.79379895]
[1772575635460,0.79922004,1979.9,1979.3,0.79379895]
[1772575635666,0.79922004,1979.9,1979.5,0.79379895]
[1772575635867,0.79922004,1979.9,1979.5,0.79775092]
[1772575636069,0.10701425,1979.9,1979.5,0.79775092]
[1772575637265,0.11255509,1979.9,1979.5,0.79775092]
[1772575641068,0.83444798,1980.3,1979.7,0.80327618]
[1772575641268,0.83444798,1980.3,1979.9,0.80327618]
[1772575641966,0.83444798,1980.3,1979.8,0.25254]
[1772575641967,0.83444798,1980.5,1980.0,1.05578618]
[1772575642161,0.83444798,1980.7,1980.2,0.25249]
[1772575642366,0.83444798,1981.2,1980.5,0.80327618]
[1772575642974,0.83444798,1981.1,1980.4,0.25246]
[1772575643166,0.0065656,1981.1,1980.6,0.25244]
[1772575643468,0.83444798,1981.3,1980.6,0.25244]
[1772575643970,0.83444798,1981.3,1980.6,1.05571618]
[1772575644169,0.83444798,1981.3,1980.7,0.80327618]
[1772575644367,0.83883209,1981.3,1980.3,0.80327618]
[1772575644566,0.83444798,1981.1,1980.3,0.80327618]
[1772575645466,0.83444798,1981.1,1980.7,0.80327618]
[1772575645764,0.83883209,1981.3,1980.8,0.25241]
[1772575646070,0.83883209,1981.3,1980.5,0.80327618]
[1772575646266,0.83883209,1981.3,1980.9,0.80327618]
[1772575646471,0.83883209,1981.3,1980.9,0.80714751]
[1772575650970,6.617,1981.5,1980.9,0.80714751]
[1772575650971,0.80334761,1981.5,1980.9,0.80714751]
[1772575651170,0.80334761,1981.5,1980.8,0.25241]
[1772575651372,0.80334761,1981.5,1980.8,1.05568618]
[1772575652272,0.8073802,1981.5,1980.8,1.06079708]
[1772575652669,0.79895285,1981.4,1980.8,1.06079708]
[1772575653773,0.79895285,1981.4,1980.8,0.2575209]
[1772575653978,0.79895285,1981.4,1980.4,0.80327618]
[1772575654880,0.79895285,1981.4,1980.4,0.80909219]
[1772575655074,0.79895285,1981.4,1980.6,0.80327618]
[1772575655275,0.79604898,1981.2,1980.6,0.80327618]
[1772575655580,0.79616269,1981.1,1980.6,0.80327618]
[1772575658987,6.616,1981.4,1980.8,0.80327618]
[1772575659181,0.78326351,1981.3,1980.8,0.80327618]
[1772575660782,7.39926351,1981.3,1981.0,0.80327618]
[1772575660984,0.78326351,1981.3,1981.0,0.80327618]
[1772575661283,7.4051165,1981.4,1981.0,0.80327618]
[1772575661786,0.00403259,1981.5,1980.5,6.21035]
[1772575661787,0.79322048,1981.5,1981.1,1.05564618]
[1772575661982,0.00262297,1981.6,1981.2,0.80327618]
[1772575662183,0.00262297,1981.8,1981.2,0.80327618]
[1772575662389,6.61762297,1981.8,1981.4,0.90673391]
[1772575662583,6.615,1981.8,1981.4,0.90673391]
[1772575662987,6.62031527,1981.8,1981.4,0.90673391]
[1772575663690,6.62031527,1981.8,1981.3,0.25235]
[1772575663886,6.62031527,1981.8,1980.8,0.25241]
[1772575664086,6.62031527,1981.8,1980.9,0.91102277]
[1772575664286,6.62031527,1981.8,1980.8,1.16343277]
[1772575664789,6.62031527,1981.8,1980.4,6.22527134]
[1772575664790,0.00531527,1981.8,1981.0,1.16455176]
[1772575664991,0.00127252,1981.6,1981.0,1.16455176]
[1772575666994,0.00127252,1981.6,1981.0,0.25239]
[1772575667994,0.00127252,1981.6,1981.0,1.16958427]
[1772575668394,6.61951423,1981.5,1981.1,0.91719427]
[1772575668695,6.615,1981.5,1981.0,1.17945301]
[1772575669793,6.614,1981.4,1981.0,1.17945301]
[1772575669991,6.614,1981.3,1981.0,0.92706301]
[1772575670392,0.00531527,1981.8,1981.0,0.92706301]
[1772575670588,6.614,1981.7,1981.0,0.92706301]
[1772575671394,0.54148966,1981.6,1981.0,0.92706301]
[1772575671890,0.54148966,1981.6,1980.5,1.18068991]
[1772575672089,0.54148966,1981.6,1980.6,0.92824991]
[1772575672695,6.614,1981.5,1980.6,0.92824991]
[1772575672895,0.54148966,1981.4,1980.6,0.92824991]
[1772575674592,0.54148966,1981.4,1980.7,1.18681152]
[1772575674793,0.00531527,1981.8,1981.0,0.93439152]
[1772575674999,6.614,1981.7,1981.0,0.93439152]
[1772575675199,0.54189652,1981.6,1981.0,0.93439152]
[1772575675897,0.54189652,1981.6,1980.6,0.93439596]
[1772575676197,6.614,1981.5,1980.4,1.19266197]
[1772575676400,7.15589652,1981.4,1980.5,0.93439596]
[1772575676699,0.54189652,1981.3,1980.5,0.93439596]
[1772575677496,0.54189652,1981.3,1980.4,0.25826601]
[1772575677898,0.54189652,1981.3,1980.4,1.19841083]
[1772575678096,6.614,1981.2,1980.5,0.94014482]
[1772575678295,0.54189652,1981.1,1980.5,0.94014482]
[1772575681201,6.615,1981.0,1980.5,0.94014482]
[1772575681703,6.615,1981.0,1980.4,0.25826601]
[1772575681704,6.615,1981.0,1980.4,0.00581601]
[1772575681901,0.54176513,1980.9,1980.1,0.94794658]
[1772575682100,6.615,1980.8,1980.1,0.94794658]
[1772575682302,4.1946685,1981.4,1980.1,0.94794658]
[1772575682502,7.15667008,1981.3,1980.1,0.94794658]
[1772575682805,0.54167008,1981.2,1980.1,0.95155168]
[1772575683002,4.1946685,1981.6,1981.0,0.86117061]
[1772575683204,0.52820356,1981.9,1981.4,0.86117061]
[1772575683406,0.52820356,1981.9,1981.3,0.25235]
[1772575683407,0.53351883,1981.8,1981.1,0.86117061]
[1772575684301,0.53103821,1981.6,1980.8,0.86117061]
[1772575684603,7.18379458,1981.5,1980.8,0.86117061]
[1772575685500,0.56879458,1981.5,1980.8,0.86117061]
[1772575685701,0.00531527,1981.8,1980.4,14.04694112]
[1772575685702,0.57165097,1981.3,1980.4,4.1745345]
[1772575685905,0.57165097,1981.1,1980.3,0.86117061]
[1772575686104,6.615,1981.0,1980.3,0.86117061]
[1772575686702,7.19456815,1981.0,1980.3,0.86117061]
[1772575687102,0.58234792,1981.4,1980.3,0.86117061]
[1772575687303,0.58234792,1981.2,1980.4,0.86117061]
[1772575687504,0.58234792,1981.0,1980.4,0.86117061]
[1772575687704,7.19736617,1980.9,1980.4,0.86117061]
[1772575687904,6.615,1980.9,1980.4,0.86117061]
[1772575688908,0.58236617,1981.1,1980.4,0.86117061]
[1772575689108,6.615,1981.0,1980.4,0.86117061]
[1772575690208,7.19737857,1981.0,1980.4,0.86117061]
[1772575691106,0.58474704,1981.6,1980.4,0.86117061]
[1772575691408,0.58474704,1981.4,1980.6,0.86117061]
[1772575691808,6.615,1981.5,1980.6,0.86117061]
[1772575691809,0.58475272,1981.7,1980.6,0.86117061]
[1772575692106,0.58738873,1981.5,1980.6,0.86117061]
[1772575692702,7.19481905,1981.4,1980.6,0.86117061]
[1772575693008,6.615,1981.3,1980.6,0.86117061]
[1772575694007,0.58499718,1981.2,1980.6,0.86117061]
[1772575694209,0.58499718,1981.4,1980.8,0.86117061]
[1772575694409,6.615,1981.3,1980.8,0.86117061]
[1772575694709,7.2060489,1981.3,1980.8,0.86117061]
[1772575695211,0.5935673,1981.2,1980.8,0.86117061]
[1772575695411,0.5935673,1981.2,1980.7,0.86117061]
[1772575695612,0.5935673,1981.2,1980.5,0.86117061]
[1772575701517,0.5935673,1981.2,1980.5,0.87227175]
[1772575705620,0.62618856,1981.3,1980.6,0.87227175]
[1772575705818,6.615,1981.2,1980.6,0.87227175]
[1772575706921,0.63085888,1981.7,1980.8,0.87227175]
[1772575707121,0.63085888,1981.5,1980.8,0.87227175]
[1772575709126,0.63746632,1981.4,1980.8,0.87227175]
[1772575711723,0.63746632,1981.4,1980.5,5.04680625]
[1772575711929,0.64012459,1981.2,1980.3,5.04680625]
[1772575712125,0.79017955,1981.1,1980.2,4.1745345]
[1772575712426,0.64216733,1980.9,1980.1,0.87587685]
[1772575713919,7.25337155,1981.0,1980.2,0.87227175]
[1772575714127,7.25337155,1981.0,1980.3,0.87227175]
[1772575715424,0.64352414,1980.9,1980.3,0.87227175]
[1772575716333,0.64352414,1980.9,1980.1,5.05041135]
[1772575716632,0.64547777,1980.7,1980.1,0.87587685]
[1772575716822,6.615,1980.9,1980.1,0.87587685]
[1772575717028,6.615,1980.9,1980.3,0.87227175]
[1772575717424,0.63551947,1981.2,1980.4,0.87227175]
[1772575717633,7.78858112,1981.1,1980.4,0.87227175]
[1772575717935,0.53806915,1981.0,1980.4,0.87227175]
[1772575718232,1.17548563,1981.0,1980.4,0.87227175]
[1772575718428,0.63741648,1981.0,1980.4,0.87227175]
[1772575720132,6.616,1980.9,1980.4,0.87227175]
[1772575720336,7.25370171,1980.9,1980.4,0.87227175]
[1772575720632,0.67387478,1980.8,1980.4,0.87227175]
[1772575721035,7.29171277,1980.9,1980.4,0.87227175]
[1772575721426,0.67571277,1980.8,1980.4,0.87227175]
[1772575722531,4.1946685,1981.4,1980.4,0.87227175]
[1772575722736,0.53797611,1981.3,1980.6,0.87227175]
[1772575722937,6.616,1981.4,1980.7,0.87227175]
[1772575723132,7.30851257,1981.4,1980.7,0.87227175]
[1772575723434,0.53795169,1981.3,1980.7,0.87227175]
[1772575724136,7.30851257,1981.4,1980.7,0.87227175]
[1772575724337,0.53795169,1981.3,1980.7,0.87227175]
[1772575725638,1.22524828,1981.3,1980.7,0.87227175]
[1772575725832,0.68729659,1981.2,1980.7,0.87227175]
[1772575726837,6.616,1981.1,1980.7,0.87227175]
[1772575727434,7.3061194,1981.1,1980.7,0.87227175]
[1772575730534,0.6973188,1981.0,1980.6,5.13629942]
[1772575730736,6.615,1980.9,1980.7,0.96176492]
[1772575731944,6.615,1980.8,1980.6,0.96176492]
[1772575732236,0.70053045,1981.6,1980.6,0.96176492]
[1772575732436,0.00531527,1981.8,1980.8,0.96176492]
[1772575732437,7.85349284,1981.5,1980.8,0.96176492]
[1772575732637,1.22839491,1981.4,1980.8,0.96176492]
[1772575732841,0.69043252,1981.4,1980.8,0.96176492]
[1772575733441,7.30698074,1981.3,1980.8,0.96176492]
[1772575733643,6.615,1981.2,1980.8,0.96176492]
[1772575735343,7.31579331,1981.2,1980.8,0.96176492]
[1772575735845,0.70081181,1981.1,1980.7,5.13629942]
[1772575736046,0.70081181,1981.1,1980.7,0.96176492]
[1772575736241,0.70233945,1981.1,1980.6,5.13629942]
[1772575736436,0.70233945,1981.1,1980.4,0.99938449]
[1772575737341,0.0023575,1981.4,1980.6,0.9993381]
[1772575737646,0.0023575,1981.2,1980.6,0.9993381]
[1772575737846,0.54023001,1981.2,1980.6,0.9993381]
[1772575738047,0.00438703,1981.1,1980.6,0.9993381]
[1772575739147,0.00438703,1981.1,1980.5,0.25245]
[1772575739148,6.615,1981.3,1980.8,1.01101362]
[1772575740244,4.19998377,1981.8,1980.8,1.01101362]
[1772575740445,7.15287748,1981.7,1980.8,1.01101362]
[1772575740646,0.00234404,1981.5,1980.8,1.01101362]
[1772575741144,0.00234404,1981.5,1980.7,0.25242]
[1772575741145,6.615,1981.4,1981.0,1.00232015]
[1772575742752,6.615,1981.3,1981.0,1.00232015]
[1772575742950,6.615,1981.4,1981.0,1.00232015]
[1772575743650,0.00428043,1981.6,1981.0,1.00232015]
[1772575743843,6.615,1981.5,1981.0,1.00232015]
[1772575744343,0.01807796,1981.8,1981.0,1.00232015]
[1772575744548,6.615,1981.7,1981.2,1.00093081]
[1772575744747,6.6304547,1981.7,1981.2,1.00093081]
[1772575745143,0.0154547,1981.7,1981.2,1.00093081]
[1772575745348,6.615,1981.6,1981.2,1.00093081]
[1772575745547,0.0154547,1981.7,1980.8,6.21945533]
[1772575745548,0.0154547,1981.7,1980.8,7.21904014]
[1772575745747,0.0173284,1981.5,1980.9,0.99957391]
[1772575745949,6.615,1981.4,1980.9,0.99957391]
[1772575746950,0.00241496,1981.3,1980.9,0.99957391]
[1772575747347,0.00241496,1981.4,1980.9,0.99957391]
[1772575747547,6.615,1981.2,1980.9,0.99957391]
[1772575747748,0.93564583,1981.1,1980.7,7.18122025]
[1772575747950,7.55064583,1981.2,1980.7,0.96176492]
[1772575748152,0.93564583,1981.1,1980.7,0.96176492]
[1772575749156,7.55064583,1981.2,1980.7,0.96176492]
[1772575750351,0.93564583,1981.1,1980.7,0.96176492]
[1772575751460,6.614,1981.0,1980.7,0.96176492]
[1772575752153,6.614,1981.0,1980.8,0.96176492]
[1772575753858,6.614,1981.0,1980.7,0.96176492]
[1772575754558,0.93564583,1981.5,1980.7,0.96176492]
[1772575754758,0.93564583,1981.3,1980.8,0.96176492]
[1772575754955,0.93564583,1981.5,1980.8,1.21416492]
[1772575755161,0.93564583,1981.4,1980.9,0.96176492]
[1772575755453,0.00531527,1981.8,1981.7,1.21406492]
[1772575755660,0.43223501,1982.2,1981.8,0.96176492]
[1772575755850,0.43223501,1982.2,1981.7,1.22005506]
[1772575756663,7.03743009,1982.1,1981.7,1.22005506]
[1772575757265,6.614,1982.2,1981.8,0.96176492]
[1772575757562,0.42615911,1982.1,1981.8,0.96176492]
[1772575758164,0.43030273,1982.1,1981.8,0.96176492]
[1772575759864,0.43030273,1982.1,1981.7,1.24131516]
[1772575761466,0.43030273,1982.1,1981.7,0.98901516]
[1772575761769,0.43030273,1982.1,1981.4,0.98302502]
[1772575762067,0.43030273,1982.1,1981.3,0.25235]
[1772575762263,0.43030273,1982.1,1981.2,0.98302502]
[1772575762762,0.99786052,1981.8,1980.8,0.98302502]
[1772575762968,1.00080318,1981.8,1980.8,0.98302502]
[1772575763163,1.00080318,1981.6,1980.8,0.98302502]
[1772575763765,1.00080318,1981.6,1980.8,0.98902808]
[1772575765570,1.01458214,1981.4,1980.8,0.98902808]
[1772575765766,1.01455231,1981.2,1980.8,0.98902808]
[1772575765972,6.613,1981.3,1980.8,0.98902808]
[1772575766172,7.63038781,1981.3,1980.8,0.98902808]
[1772575766669,1.0196189,1981.2,1980.8,0.98902808]
[1772575766870,1.0196189,1981.2,1980.4,6.21945533]
[1772575767077,7.63479628,1981.1,1980.5,0.98302502]
[1772575767271,7.63479628,1981.0,1980.5,0.98302502]
[1772575767470,6.613,1981.0,1980.5,0.98302502]
[1772575767864,7.63479628,1981.0,1980.5,0.98768645]
[1772575768074,1.02179628,1980.9,1980.5,0.98768645]
[1772575768279,6.613,1981.2,1980.5,0.98768645]
[1772575768573,6.613,1981.1,1980.5,0.98768645]
[1772575768971,0.97646739,1981.3,1980.5,0.98768645]
[1772575769168,0.97919799,1981.6,1980.7,0.98302502]
[1772575769368,7.59219799,1981.8,1980.7,0.98302502]
[1772575769573,0.97919799,1981.7,1980.9,0.98302502]
[1772575770976,6.614,1981.6,1980.9,0.98302502]
[1772575771177,0.96734192,1982.0,1981.1,0.98302502]
[1772575771377,0.96734192,1981.8,1981.1,0.98302502]
[1772575772579,7.58134192,1981.8,1981.3,0.98302502]
[1772575772882,0.96908179,1982.0,1981.3,0.98302502]
[1772575773081,6.614,1981.9,1981.3,0.98302502]
[1772575773777,0.96897192,1981.8,1981.3,0.98302502]
[1772575774684,6.614,1981.9,1981.3,0.98302502]
[1772575775181,7.59703877,1981.9,1981.3,0.98302502]
[1772575776780,1.00183851,1981.8,1981.3,0.98302502]
[1772575776973,1.00434545,1981.8,1981.3,0.98302502]
[1772575778988,6.613,1981.7,1981.3,0.98302502]
[1772575779480,1.010466,1982.0,1981.3,0.98302502]
[1772575779680,1.01460962,1982.1,1981.5,0.98302502]
[1772575779885,6.613,1982.0,1981.5,0.98302502]
[1772575780083,7.07044575,1982.2,1981.5,0.98302502]
[1772575780277,7.07044575,1982.1,1981.5,0.98302502]
[1772575780779,7.07534568,1982.1,1981.5,0.98302502]
[1772575781490,0.46247779,1982.0,1981.5,0.98302502]
[1772575781689,0.46247779,1982.0,1981.3,0.98302502]
[1772575784089,0.00489993,1982.1,1981.3,0.98302502]
[1772575784090,7.08654932,1981.9,1981.3,0.98302502]
[1772575785788,6.613,1981.9,1981.3,0.98302502]
[1772575788192,0.00489993,1982.1,1981.4,1.04306866]
[1772575788394,6.613,1982.5,1981.8,1.04306866]
[1772575788588,7.12286462,1982.6,1981.8,1.04306866]
[1772575788985,0.53386837,1982.8,1981.8,1.04306866]
[1772575789190,0.53386837,1982.8,1982.0,1.04306866]
[1772575789382,0.53911563,1982.8,1982.2,1.04306866]
[1772575789691,0.00524726,1982.8,1982.2,1.04306866]
[1772575790990,0.00524726,1982.8,1982.4,1.04306866]
[1772575792092,6.612,1982.9,1982.4,1.04306866]
[1772575792990,7.17111676,1982.9,1982.4,1.04306866]
[1772575793191,0.55401238,1982.8,1982.1,1.04306866]
[1772575796090,0.5640993,1982.7,1982.1,1.04306866]
[1772575796397,7.1750993,1982.7,1982.1,1.04306866]
[1772575799799,0.58333569,1982.6,1982.0,0.00513837]
[1772575800093,0.58333569,1982.6,1982.0,1.04820703]
[1772575800897,7.2062831,1982.9,1982.2,1.04306866]
[1772575801200,0.59117872,1982.8,1982.2,1.04306866]
[1772575802499,0.5984475,1982.9,1982.2,1.04306866]
[1772575802701,6.61,1982.8,1982.2,1.04306866]
[1772575802899,7.2028591,1982.8,1982.2,1.04306866]
[1772575805398,0.60123826,1982.7,1982.2,1.04306866]
[1772575806401,7.21123826,1982.7,1982.2,1.04306866]
[1772575806903,0.60123826,1982.7,1982.2,1.04306866]
[1772575807098,7.21123826,1982.7,1982.2,1.04306866]
[1772575810098,0.61748578,1982.6,1982.0,0.00513837]
[1772575810598,0.61748578,1982.6,1982.0,1.04820703]
[1772575812507,0.00510438,1982.9,1982.2,1.04306866]
[1772575812703,6.61510438,1982.9,1982.2,1.04306866]
[1772575812903,7.24359759,1982.9,1982.3,1.04306866]
[1772575813103,6.61,1982.8,1982.3,1.04306866]
[1772575813405,7.24359759,1982.9,1982.3,1.04306866]
[1772575813605,6.61510438,1982.9,1982.3,1.04306866]
[1772575815007,7.26389189,1982.9,1982.3,1.04306866]
[1772575815408,7.26389189,1982.9,1982.4,1.04306866]
[1772575815606,0.64878751,1982.8,1982.3,2.91383259]
[1772575815804,6.61,1982.8,1982.3,1.09691465]
[1772575816108,6.61148554,1982.8,1982.3,1.09691465]
[1772575816500,0.00510438,1982.9,1982.3,1.09691465]
[1772575816806,6.61,1982.8,1982.3,1.09691465]
[1772575818008,0.00510438,1982.9,1982.3,1.09691465]
[1772575818214,6.61510438,1982.9,1982.3,1.09691465]
[1772575820617,6.61838416,1982.9,1982.3,1.09691465]
[1772575820817,0.00327978,1982.8,1982.3,1.09691465]
[1772575823421,6.61227978,1982.8,1982.3,1.09691465]
[1772575828316,0.02259678,1982.7,1982.3,1.09691465]
[1772575828826,6.63772878,1982.8,1982.3,1.09691465]
[1772575829023,0.00510438,1982.9,1982.3,1.09691465]
[1772575829222,0.03070693,1983.0,1982.4,1.09729183]
[1772575830118,0.03269408,1982.8,1982.0,1.11813625]
[1772575830322,0.00124624,1982.4,1981.5,8.949339]
[1772575830532,0.00124624,1982.2,1981.5,1.11299788]
[1772575830722,0.53823618,1982.2,1981.5,1.11299788]
[1772575831121,6.609,1982.3,1981.5,1.11299788]
[1772575831325,6.609,1982.3,1981.5,1.11884624]
[1772575832422,6.609,1982.5,1981.8,1.11669415]
[1772575832627,6.61537146,1982.5,1981.8,1.11669415]
[1772575832823,0.00637146,1982.4,1981.8,1.11669415]
[1772575833027,6.61537146,1982.4,1981.8,1.11669415]
[1772575834124,0.01021863,1982.3,1981.8,1.11669415]
[1772575834331,0.01021863,1982.3,1981.7,1.1123694]
[1772575835026,6.61,1982.2,1981.7,1.1123694]
[1772575835331,6.62821312,1982.2,1981.7,1.1123694]
[1772575838331,0.02879992,1982.1,1981.7,1.1123694]
[1772575845928,0.02879992,1982.1,1981.6,1.10165044]
[1772575847237,0.02879992,1982.1,1981.5,0.00584836]
[1772575847436,0.02879992,1982.1,1981.5,1.10722632]
[1772575847832,0.02879992,1982.1,1981.2,1.35664194]
[1772575848033,0.05185268,1982.0,1981.0,1.10428194]
[1772575848934,0.05185268,1982.0,1981.0,1.10910062]
[1772575849838,0.05464148,1981.8,1981.0,1.10910062]
[1772575852336,6.65543616,1981.7,1981.0,1.10910062]
[1772575852735,0.04304687,1981.6,1981.0,1.10910062]
[1772575852941,0.04882391,1981.6,1981.0,1.10910062]
[1772575857643,6.612,1982.0,1981.6,1.129513]
[1772575857845,6.612,1982.1,1981.6,1.129513]
[1772575858043,0.05178806,1982.2,1981.6,1.129513]
[1772575858238,6.612,1982.1,1981.8,1.129513]
[1772575858537,6.61727659,1982.1,1981.8,1.129513]
[1772575859142,0.05303275,1982.3,1981.8,1.129513]
[1772575859344,6.66503275,1982.3,1981.8,1.129513]
[1772575860133,6.67139229,1982.3,1981.8,1.129513]
[1772575860340,0.00635954,1982.3,1981.8,1.129513]
[1772575860536,0.57206004,1982.7,1982.0,1.129513]
[1772575861547,0.5783288,1982.7,1982.0,1.129513]
[1772575861746,0.04367303,1982.6,1982.0,1.129513]
[1772575862847,6.612,1982.5,1982.0,1.129513]
[1772575863150,0.04975575,1982.4,1982.0,1.129513]
[1772575863743,0.04975575,1982.4,1980.9,8.95830868]
[1772575863744,0.58243985,1982.4,1981.6,1.129513]
[1772575863940,0.04977448,1982.3,1981.6,1.129513]
[1772575866251,0.02601489,1982.1,1981.2,1.129513]
[1772575866448,0.02601489,1981.9,1981.2,1.129513]
[1772575867851,5.63801489,1982.0,1981.2,1.129513]
[1772575869855,0.25223,1982.2,1981.2,1.129513]
[1772575870058,6.612,1982.1,1981.2,1.129513]
[1772575872256,0.52888472,1982.0,1981.2,1.129513]
[1772575873856,0.00176743,1981.9,1981.2,1.129513]
[1772575875957,0.52888472,1982.0,1981.0,1.14767166]
[1772575875958,0.00810785,1981.7,1981.0,1.14767166]
[1772575876551,6.613,1981.6,1981.0,1.14767166]
[1772575879454,0.01652425,1982.2,1981.2,1.14067196]
[1772575879652,4.21939856,1982.4,1981.2,1.14067196]
[1772575879653,6.62953389,1982.1,1981.2,1.14067196]
[1772575880161,0.01653389,1982.1,1981.2,1.14067196]
[1772575880359,6.613,1982.0,1981.2,1.14067196]
[1772575882260,0.01653389,1982.1,1981.2,1.14067196]
[1772575882559,6.613,1982.0,1981.4,1.14131479]
[1772575883261,0.01811025,1982.2,1981.4,1.14131479]
[1772575883561,6.613,1982.1,1981.4,1.14131479]
[1772575883755,0.01811025,1982.2,1981.4,1.14131479]
[1772575883956,0.54642931,1982.5,1981.6,1.14044216]
[1772575884156,0.02169988,1982.5,1981.6,1.14044216]
[1772575884357,6.63469988,1982.6,1981.6,1.14044216]
[1772575885357,0.0265849,1982.5,1981.6,1.14044216]
[1772575886055,0.0265849,1982.5,1981.8,1.13844946]
[1772575886352,6.6395849,1982.5,1981.8,1.13844946]
[1772575887256,0.00626876,1982.7,1982.2,1.13294021]
[1772575887656,0.05563356,1983.3,1982.3,0.25222]
[1772575887855,0.05563356,1983.2,1982.4,1.13294021]
[1772575888666,0.06100423,1983.2,1982.4,1.13836235]
[1772575889861,0.00537067,1983.2,1982.4,1.13836235]
[1772575890068,0.06425223,1983.2,1982.4,1.13836235]
[1772575890266,4.21939856,1984.0,1982.6,1.13294021]
[1772575890462,6.612,1984.0,1983.2,0.25211]
[1772575890666,6.612,1984.0,1983.3,1.13294021]
[1772575891061,0.05888156,1984.1,1983.3,1.13294021]
[1772575891270,6.612,1984.0,1983.3,1.13294021]
[1772575891973,0.06317558,1984.1,1983.3,1.13294021]
[1772575892173,6.612,1984.0,1983.3,1.13294021]
[1772575892569,6.45207,1983.8,1982.5,6.22280565]
[1772575892770,2.74920868,1983.1,1982.1,1.4066624]
[1772575892975,6.611,1983.0,1982.1,1.1544324]
[1772575893676,6.611,1982.9,1982.1,1.16043633]
[1772575893876,6.611,1982.8,1982.1,1.16043633]
[1772575894675,6.61,1982.7,1982.1,1.16043633]
[1772575894875,6.61652108,1982.7,1982.1,1.16043633]
[1772575896472,0.00652108,1982.7,1982.1,1.16043633]
[1772575896770,6.61,1982.6,1982.1,1.16043633]
[1772575899577,6.95384427,1982.6,1982.1,1.16043633]
[1772575900169,10.69839935,1983.2,1982.1,1.16043633]
[1772575900373,0.33939935,1983.2,1982.1,1.16043633]
[1772575901377,0.34510395,1983.2,1982.1,1.16043633]
[1772575903274,0.34510395,1983.2,1982.3,1.16278127]
[1772575904374,6.61,1983.1,1982.3,1.16278127]
[1772575904776,0.34510395,1983.2,1982.3,1.16278127]
[1772575904977,0.34327044,1983.7,1982.9,1.15684121]
[1772575905375,6.61,1983.6,1982.9,1.15684121]
[1772575905976,6.61495506,1983.6,1982.9,1.15684121]
[1772575907077,0.00495506,1983.6,1982.9,1.15684121]
[1772575912689,6.96048828,1984.0,1983.3,1.26502953]
[1772575912883,0.3572331,1983.9,1983.3,1.26502953]
[1772575913786,0.3631242,1983.9,1983.3,1.26502953]
[1772575914389,0.3631242,1983.9,1982.9,1.26502953]
[1772575918692,0.31984614,1983.7,1982.9,1.26502953]
[1772575919084,0.31984614,1983.7,1982.9,0.71721207]
[1772575919288,0.86327382,1983.5,1982.3,1.26502953]
[1772575919492,0.86327382,1983.3,1982.3,1.26502953]
[1772575920788,0.88807085,1983.2,1982.3,1.26502953]
[1772575921296,0.88399484,1982.6,1982.1,0.00600393]
[1772575921594,0.88399484,1982.5,1981.5,1.26502953]
[1772575922494,0.89047932,1982.5,1981.5,1.27105963]
[1772575922789,0.25221,1982.4,1981.5,1.27105963]
[1772575922990,0.86241247,1982.3,1981.5,1.27105963]
[1772575923589,0.86241247,1982.3,1981.5,0.0060301]
[1772575923895,0.86241247,1982.3,1981.5,1.27105963]
[1772575926894,7.46055884,1982.5,1981.5,1.27105963]
[1772575927097,0.00648448,1982.5,1981.7,1.26502953]
[1772575927701,0.8475286,1982.5,1981.7,1.26502953]
[1772575933310,0.8475286,1982.5,1981.5,0.0060301]
[1772575933311,0.78289892,1982.3,1981.5,0.0060301]
[1772575933508,0.78289892,1982.1,1981.3,1.26502953]
[1772575933711,0.78289892,1982.1,1980.7,1.26502953]
[1772575934107,0.77294036,1982.3,1980.9,1.26502953]
[1772575934509,0.77294036,1982.3,1981.1,1.26502953]
[1772575934905,0.77315246,1981.9,1981.1,1.26502953]
[1772575935110,0.76955797,1981.7,1981.1,1.26502953]
[1772575937711,7.29372815,1981.6,1981.1,1.26502953]
[1772575938114,0.68189109,1981.5,1981.1,1.26502953]
[1772575938317,0.68189109,1981.9,1981.1,1.26502953]
[1772575938516,6.611,1981.8,1981.1,1.26502953]
[1772575940012,7.29260524,1981.8,1981.1,1.26502953]
[1772575941717,0.68910241,1981.7,1981.1,1.26502953]
[1772575946316,0.66987331,1981.5,1980.9,1.24486728]
[1772575946516,0.25228,1981.9,1980.9,1.24486728]
[1772575946517,0.66987331,1981.3,1980.9,1.24486728]
[1772575946733,6.612,1981.2,1980.9,0.54886728]
[1772575947022,1.29183894,1981.5,1980.8,0.69223706]